bitfinex/quotes_ETHUSD_20250123
["timestamp","ask_amount","ask_price","bid_price","bid_amount"]
[1737645442727,3.09092,3235.3,3234.7,0.6150983]
[1737645442938,3.09123,3235.0,3233.9,3.57568348]
[1737645443097,3.09128,3234.9,3233.5,3.09255]
[1737645443303,4.06497,3235.0,3234.1,0.63259482]
[1737645443697,3.09146,3234.8,3234.1,0.63259482]
[1737645444044,3.0915,3234.7,3234.1,0.63259482]
[1737645444203,3.0915,3234.7,3233.9,3.09224]
[1737645444406,0.9737,3235.0,3234.0,3.70765108]
[1737645444602,3.09109,3235.1,3234.1,3.09204]
[1737645444920,0.9296,3235.6,3234.3,3.09185]
[1737645444921,3.09103,3235.2,3234.3,3.09185]
[1737645445119,3.09121,3235.0,3234.1,3.09203]
[1737645445303,3.09121,3235.0,3234.1,3.09205]
[1737645445508,3.09101,3235.2,3234.2,3.09195]
[1737645445720,3.09101,3235.2,3234.4,3.09173]
[1737645445901,3.09078,3235.5,3234.1,0.55]
[1737645446104,0.9296,3236.1,3233.9,3.0]
[1737645446434,3.09041,3235.9,3234.9,0.55]
[1737645446755,0.9296,3236.6,3235.6,3.09057]
[1737645446906,0.9296,3236.6,3234.3,3.09179]
[1737645446907,0.9296,3236.6,3234.3,3.0]
[1737645447349,3.09032,3236.0,3233.6,3.34245]
[1737645447550,3.09049,3235.8,3234.9,0.55]
[1737645447850,3.08994,3236.3,3234.4,3.09175]
[1737645448149,3.09061,3235.6,3234.8,3.71041245]
[1737645448455,3.09013,3236.2,3234.8,0.61904245]
[1737645448674,3.08986,3236.4,3235.0,0.55]
[1737645448944,3.09007,3236.2,3235.1,3.09102]
[1737645449098,0.9796,3236.5,3233.8,3.09225]
[1737645449304,3.09109,3235.2,3234.2,3.09187]
[1737645449547,3.0912,3235.0,3234.2,3.0919]
[1737645449755,3.091,3235.2,3234.0,3.09208]
[1737645449982,3.09102,3235.2,3234.5,0.61749655]
[1737645450258,5.27871729,3237.0,3234.5,0.61749655]
[1737645450259,1.0172,3235.9,3235.2,3.09098]
[1737645450408,1.0172,3235.9,3234.7,3.0914]
[1737645450409,1.0172,3235.9,3234.6,0.55]
[1737645450611,1.0172,3235.9,3234.8,3.09129]
[1737645450805,1.0172,3235.9,3235.1,3.091]
[1737645451017,1.0172,3235.9,3234.9,3.09127]
[1737645451259,3.09101,3235.2,3234.4,3.09169]
[1737645451421,3.09104,3235.2,3232.9,0.165689]
[1737645451630,3.09104,3235.2,3233.7,3.0]
[1737645451828,3.09109,3235.1,3234.2,3.09194]
[1737645452027,3.09042,3235.8,3233.2,3.09281]
[1737645452028,3.09197,3234.2,3233.2,3.09281]
[1737645452358,3.09071,3235.5,3234.0,0.62060991]
[1737645452508,0.25,3235.8,3232.9,0.165689]
[1737645452509,0.9249,3234.3,3232.9,0.165689]
[1737645452951,3.09195,3234.2,3233.0,0.60589384]
[1737645453249,0.9249,3234.3,3233.0,0.60589384]
[1737645453250,3.09256,3233.6,3233.0,0.60589384]
[1737645453454,3.09234,3233.8,3233.0,0.60589384]
[1737645453613,3.09219,3234.0,3233.2,3.09291]
[1737645453828,3.09205,3234.1,3233.0,0.60589384]
[1737645454027,0.9249,3234.3,3233.0,0.60589384]
[1737645454228,3.09158,3234.6,3233.4,3.09264]
[1737645454461,3.09158,3234.6,3233.0,0.60589384]
[1737645454462,3.09158,3234.6,3233.7,3.09238]
[1737645454660,0.9603,3234.8,3232.9,0.165689]
[1737645454661,4.05169,3234.8,3233.2,0.55]
[1737645454861,4.06969,3235.2,3233.2,0.55]
[1737645455070,4.06969,3235.2,3234.0,0.62023891]
[1737645455382,0.9787,3236.8,3234.1,0.55]
[1737645455527,3.09088,3235.4,3233.1,0.25]
[1737645455728,0.9787,3235.7,3233.1,0.25]
[1737645455729,0.9787,3235.7,3234.1,3.09197]
[1737645455972,3.09169,3234.5,3233.6,3.09244]
[1737645456185,0.9787,3235.7,3233.5,3.09262]
[1737645456333,0.9787,3235.7,3234.4,0.62401068]
[1737645456735,3.09138,3234.8,3234.0,3.09207]
[1737645456934,0.9787,3235.7,3233.6,3.09246]
[1737645457133,3.09139,3234.8,3234.1,0.62159922]
[1737645457592,3.09162,3234.6,3234.1,0.62159922]
[1737645457798,3.09162,3234.6,3233.6,3.09243]
[1737645458084,0.9528,3235.1,3234.2,3.09187]
[1737645458288,3.09135,3234.9,3234.1,3.09202]
[1737645458486,3.0916,3234.6,3233.9,0.61856944]
[1737645458698,3.09207,3234.1,3233.3,3.09277]
[1737645458898,3.09241,3233.8,3232.9,3.258859]
[1737645459078,3.9528,3235.1,3233.4,3.0927]
[1737645459079,4.04486,3234.1,3233.4,3.0927]
[1737645459247,4.04486,3234.1,3233.3,0.623327]
[1737645459248,3.09167,3234.5,3233.7,3.09234]
[1737645459443,0.9528,3234.6,3233.9,3.09222]
[1737645459675,0.9528,3234.6,3232.9,3.258829]
[1737645459676,3.09159,3234.6,3233.8,3.0923]
[1737645459890,0.9528,3235.1,3232.9,0.165689]
[1737645460199,0.5,3237.3,3234.2,0.4612]
[1737645460493,3.09004,3236.2,3234.3,3.09185]
[1737645460690,3.09004,3236.2,3233.7,3.55355]
[1737645460691,3.09174,3234.5,3233.7,3.55355]
[1737645460858,4.42322795,3236.4,3233.2,3.55403]
[1737645460859,3.09206,3234.1,3233.2,3.55403]
[1737645461189,3.09166,3234.5,3232.9,0.165689]
[1737645461497,3.09241,3233.8,3233.0,0.60620297]
[1737645461799,3.09223,3234.0,3232.9,3.258849]
[1737645461965,3.09255,3233.6,3233.5,0.60638843]
[1737645462347,3.09229,3233.9,3233.5,0.60638843]
[1737645462554,3.09248,3233.7,3233.5,0.60638843]
[1737645462864,3.09252,3233.6,3233.5,0.60638843]
[1737645463042,3.09237,3233.8,3233.5,0.60638843]
[1737645463246,3.09259,3233.6,3232.9,0.165689]
[1737645463446,3.09264,3233.5,3232.9,0.165689]
[1737645463691,3.09262,3233.5,3233.4,0.60861394]
[1737645464191,0.9542,3234.1,3233.1,0.62987988]
[1737645464353,3.09294,3233.2,3232.9,0.165689]
[1737645464543,0.9542,3234.1,3232.9,0.165689]
[1737645464892,4.0473,3233.0,3232.9,0.165689]
[1737645465046,0.9542,3233.0,3232.9,0.165689]
[1737645465250,3.09271,3233.5,3232.9,0.165689]
[1737645465563,3.09053,3235.7,3232.9,0.165689]
[1737645465564,0.9754,3234.2,3232.9,0.165689]
[1737645465759,3.09221,3234.0,3232.9,0.165689]
[1737645465961,3.09221,3234.0,3232.9,3.258859]
[1737645466162,0.9754,3234.2,3232.9,0.165689]
[1737645466163,3.09303,3233.1,3232.9,0.165689]
[1737645466355,3.09267,3233.5,3232.9,0.165689]
[1737645466687,3.093,3233.1,3232.9,0.165689]
[1737645466888,3.0931,3233.0,3232.9,0.165689]
[1737645467097,4.06838,3233.2,3232.9,0.165689]
[1737645467279,3.0924,3233.8,3232.9,0.165689]
[1737645467590,3.09216,3234.0,3233.2,3.09283]
[1737645467763,3.09216,3234.0,3233.0,3.60589]
[1737645468090,3.09243,3233.7,3233.4,0.61496671]
[1737645468398,0.9754,3234.5,3232.9,3.258809]
[1737645468399,3.09283,3233.3,3233.0,0.62536156]
[1737645468596,0.9754,3233.5,3232.9,0.165689]
[1737645468891,0.9754,3233.9,3232.9,0.165689]
[1737645469050,3.0931,3233.0,3232.9,0.165689]
[1737645469557,4.1289,3233.0,3232.9,0.165689]
[1737645469755,7.1289,3233.0,3232.9,9e-06]
[1737645470953,7.1289,3233.0,3231.9,3.15743185]
[1737645470954,3.09405,3232.0,3231.9,3.15743185]
[1737645471353,3.09405,3232.0,3230.5,0.48413527]
[1737645471354,1.002,3231.9,3229.7,0.165689]
[1737645471553,3.0955,3230.5,3230.3,0.6106974]
[1737645471796,3.09559,3230.4,3230.3,0.6106974]
[1737645472102,3.09373,3232.4,3230.3,0.6106974]
[1737645472248,3.09373,3232.4,3229.7,0.165689]
[1737645472249,3.09434,3231.7,3229.7,0.165689]
[1737645472684,3.09557,3230.5,3229.7,0.79785672]
[1737645473010,3.09425,3231.8,3230.6,3.09535]
[1737645473209,4.13307,3232.0,3230.7,3.6081]
[1737645473523,3.09443,3231.7,3230.7,3.6081]
[1737645473687,3.09443,3231.7,3230.8,3.09519]
[1737645473886,3.09415,3231.9,3230.7,0.5128]
[1737645474087,4.13312,3232.0,3230.7,0.5128]
[1737645474412,3.095,3231.1,3230.0,0.5128]
[1737645474582,3.09482,3231.3,3230.0,0.5128]
[1737645474784,3.0951,3231.0,3230.1,3.70294803]
[1737645475094,3.0951,3231.0,3230.1,0.60712803]
[1737645475285,0.9796,3231.3,3230.1,0.60712803]
[1737645475485,0.9796,3231.8,3229.9,0.5128]
[1737645475731,3.09415,3232.0,3231.0,3.09493]
[1737645476025,3.09426,3231.8,3230.9,3.60791]
[1737645476183,3.09425,3231.9,3231.2,0.62675275]
[1737645476385,3.09409,3232.0,3231.2,3.72156275]
[1737645476627,3.0934,3232.7,3231.3,0.55]
[1737645476795,3.09358,3232.5,3231.8,0.61548556]
[1737645476997,3.09412,3232.0,3231.8,0.61548556]
[1737645477186,3.09415,3231.9,3231.8,0.61548556]
[1737645477630,3.09404,3232.1,3231.8,0.61548556]
[1737645477830,3.09342,3232.7,3231.8,0.61548556]
[1737645478034,4.10424,3233.4,3232.5,3.09349]
[1737645478182,4.10424,3233.4,3231.9,0.5128]
[1737645478183,1.0115,3234.0,3232.9,3.09319]
[1737645478498,4.10315,3234.6,3233.8,3.09227]
[1737645478704,4.10315,3234.6,3233.0,0.5128]
[1737645478705,1.0115,3234.6,3233.4,0.60428028]
[1737645478883,3.09228,3233.9,3233.4,0.60428028]
[1737645479086,3.09271,3233.5,3232.5,3.09356]
[1737645479298,3.09245,3233.7,3232.8,3.09324]
[1737645479508,3.09308,3233.1,3232.2,3.09386]
[1737645479726,3.09308,3233.1,3232.0,0.5128]
[1737645479727,3.09299,3233.2,3232.0,0.5128]
[1737645479911,3.09293,3233.2,3232.0,0.5128]
[1737645480139,3.09291,3233.2,3232.0,1.14147189]
[1737645480443,0.9934,3233.6,3232.0,1.14147189]
[1737645480444,0.9934,3233.6,3232.9,3.09311]
[1737645480643,3.09206,3234.1,3233.2,3.09287]
[1737645480818,0.9798,3234.7,3232.8,0.5128]
[1737645481026,3.09166,3234.5,3232.8,0.5128]
[1737645481218,3.09271,3233.5,3232.8,0.5128]
[1737645481419,3.09244,3233.7,3232.8,3.60608]
[1737645481736,0.9798,3234.7,3232.8,0.5128]
[1737645481907,3.09155,3234.7,3233.0,3.60583]
[1737645482246,0.9433,3235.2,3234.2,0.61175509]
[1737645482431,0.955,3234.9,3233.0,0.5128]
[1737645482639,3.09278,3233.4,3232.0,0.5128]
[1737645482819,3.09337,3232.8,3232.0,3.60684]
[1737645483147,3.09253,3233.6,3232.7,3.0933]
[1737645483333,3.09253,3233.6,3232.5,3.09358]
[1737645483334,0.9873,3234.6,3232.5,0.55]
[1737645483533,3.09166,3234.5,3232.4,0.62783763]
[1737645483709,3.0934,3232.7,3232.0,0.5128]
[1737645483906,3.09368,3232.4,3231.5,3.60732]
[1737645484118,3.09299,3233.2,3231.5,0.5128]
[1737645484119,6.09299,3233.2,3231.5,0.5128]
[1737645484322,3.09405,3232.0,3231.1,3.09487]
[1737645484646,0.9873,3233.9,3231.4,0.63402323]
[1737645484831,3.09318,3233.0,3231.9,3.51079667]
[1737645485014,3.09341,3232.7,3231.9,0.41666667]
[1737645485217,3.0935,3232.6,3231.9,0.41666667]
[1737645485433,3.09374,3232.4,3231.9,0.41666667]
[1737645485745,4.07701,3232.8,3232.2,0.63000259]
[1737645485947,3.09278,3233.4,3232.5,3.0935]
[1737645486146,0.9816,3233.9,3232.7,3.0933]
[1737645486356,4.07391,3233.9,3232.5,0.55]
[1737645486656,3.09318,3233.0,3232.2,3.09379]
[1737645486952,3.0,3233.7,3232.1,0.5128]
[1737645487241,3.09311,3233.0,3232.3,3.09375]
[1737645487448,3.09321,3232.9,3232.1,0.5128]
[1737645487666,3.09238,3233.8,3232.1,0.5128]
[1737645487825,3.0,3233.7,3232.1,0.5128]
[1737645488020,0.9816,3233.9,3232.4,3.0936]
[1737645488224,0.9816,3233.9,3232.4,0.55]
[1737645488521,0.9816,3233.9,3232.3,0.55]
[1737645488734,0.9816,3233.9,3232.1,0.5128]
[1737645488949,0.9816,3233.9,3232.3,3.09369]
[1737645489260,0.9816,3233.9,3232.1,0.5128]
[1737645489663,3.0,3233.6,3231.9,0.41666667]
[1737645489967,1.0374,3233.0,3231.9,0.41666667]
[1737645492865,3.09405,3232.0,3231.9,0.41666667]
[1737645493070,4.06715,3232.0,3231.9,6.67e-06]
[1737645493307,7.06715,3232.0,3231.9,6.67e-06]
[1737645494607,6.1883,3231.9,3229.9,3.60883]
[1737645494815,3.09498,3231.1,3230.3,3.09566]
[1737645495105,0.9731,3232.0,3230.2,3.09578]
[1737645495317,0.9896,3231.2,3229.9,0.5128]
[1737645495523,3.0957,3230.3,3229.7,0.79634304]
[1737645495678,3.0956,3230.4,3229.8,3.09615]
[1737645496077,3.09492,3231.1,3229.7,0.79634304]
[1737645496320,3.09511,3230.9,3229.7,0.79634304]
[1737645496530,3.09616,3229.8,3229.7,0.79634304]
[1737645496824,3.09616,3229.8,3229.7,0.165689]
[1737645497577,3.09616,3229.8,3227.5,3.1993435]
[1737645497578,3.0,3229.8,3228.6,0.48447047]
[1737645497825,0.9817,3228.5,3227.7,0.31881222]
[1737645497984,3.09808,3227.8,3227.7,0.31881222]
[1737645498179,0.9817,3228.5,3227.5,3.1993435]
[1737645498180,3.09827,3227.6,3227.5,3.1993435]
[1737645498527,4.10547,3227.6,3227.5,3.1993435]
[1737645498702,1.0072,3227.5,3225.8,0.40119895]
[1737645499020,1.0072,3227.5,3224.9,0.5588]
[1737645499021,1.0072,3227.5,3226.7,3.09904]
[1737645499230,1.0372,3228.0,3226.8,3.09898]
[1737645499387,3.0978,3228.1,3226.2,3.09953]
[1737645499388,3.09787,3228.1,3227.1,3.09868]
[1737645499581,1.0372,3228.6,3226.7,3.09914]
[1737645499901,4.42322795,3229.7,3226.5,0.5588]
[1737645499902,1.0372,3229.5,3226.5,0.5588]
[1737645500230,3.0,3229.4,3227.3,0.5588]
[1737645500378,3.09729,3228.7,3227.6,3.09827]
[1737645500580,6.09664,3229.3,3227.3,0.5588]
[1737645500581,3.09751,3228.4,3227.3,0.5588]
[1737645500828,1.0372,3229.5,3227.3,0.5588]
[1737645500829,4.0925,3228.3,3227.3,0.5588]
[1737645500976,3.09787,3228.1,3227.3,0.5588]
[1737645501182,0.9948,3228.3,3227.3,0.5588]
[1737645501524,3.09684,3229.1,3228.1,3.09774]
[1737645501727,3.09698,3229.0,3227.9,3.09798]
[1737645502027,3.09728,3228.7,3227.9,0.63422668]
[1737645502221,3.09712,3228.8,3227.9,0.63422668]
[1737645502437,3.09674,3229.2,3227.9,0.63422668]
[1737645502601,0.99,3230.2,3228.0,1.1088]
[1737645502923,3.09685,3229.1,3228.2,3.09762]
[1737645503112,3.09639,3229.6,3228.6,3.09723]
[1737645503429,3.0973,3228.7,3228.0,1.16477235]
[1737645503611,3.09724,3228.7,3227.8,3.09807]
[1737645503816,0.99,3229.1,3227.6,3.09825]
[1737645503994,0.99,3229.1,3227.7,3.0981]
[1737645504198,3.09735,3228.6,3227.7,3.0981]
[1737645504540,0.99,3227.8,3226.4,0.165689]
[1737645504685,3.09847,3227.4,3226.5,0.5588]
[1737645504880,0.99,3227.8,3226.6,3.09923]
[1737645505098,3.09839,3227.5,3226.5,0.5588]
[1737645505298,3.09828,3227.6,3226.8,3.09902]
[1737645505494,3.09828,3227.6,3226.5,0.5588]
[1737645505495,3.098,3227.9,3227.0,3.09876]
[1737645505783,0.99,3228.3,3227.3,3.09846]
[1737645505992,3.09762,3228.3,3227.5,3.09831]
[1737645506196,0.99,3228.8,3227.7,3.65694]
[1737645506393,3.09666,3229.3,3227.9,3.09798]
[1737645506592,0.99,3229.4,3228.6,3.09726]
[1737645506828,3.09663,3229.4,3228.6,3.09726]
[1737645507143,3.09741,3228.5,3228.1,0.61340759]
[1737645507300,3.09732,3228.6,3227.7,3.65693]
[1737645507500,3.0976,3228.3,3227.7,0.5588]
[1737645507832,3.09718,3228.8,3228.0,3.09787]
[1737645508122,3.09686,3229.1,3228.2,3.09769]
[1737645508331,3.09666,3229.3,3228.3,3.09756]
[1737645508539,0.99,3229.5,3227.5,0.5588]
[1737645508680,3.09685,3229.1,3228.2,0.61582404]
[1737645508883,3.09674,3229.2,3228.4,3.09746]
[1737645509084,3.09685,3229.1,3228.4,3.09746]
[1737645509312,3.09615,3229.9,3228.9,3.09695]
[1737645509313,3.09625,3229.8,3228.9,3.09695]
[1737645509633,3.09653,3229.5,3228.7,3.65601]
[1737645509930,1.0054,3230.0,3228.2,1.18472358]
[1737645509931,4.0054,3230.0,3228.2,1.18472358]
[1737645510134,3.09693,3229.0,3228.2,3.65648]
[1737645510345,1.0054,3230.0,3228.2,3.65648]
[1737645510346,3.09704,3228.9,3228.2,3.65648]
[1737645510494,3.09742,3228.5,3227.8,0.5588]
[1737645510694,0.9686,3229.1,3227.8,0.5588]
[1737645510945,3.09739,3228.6,3227.6,3.09827]
[1737645511240,0.9686,3229.1,3227.8,0.61931797]
[1737645511241,3.09761,3228.3,3227.8,0.61931797]
[1737645511402,3.09719,3228.8,3227.8,0.61931797]
[1737645511601,3.0979,3228.0,3227.8,0.61931797]
[1737645511926,3.09719,3228.8,3226.5,0.5588]
[1737645511927,3.0,3228.4,3226.5,0.5588]
[1737645512100,3.0975,3228.4,3226.6,3.09914]
[1737645512299,3.09855,3227.4,3226.6,3.09914]
[1737645512530,0.9492,3227.5,3226.6,3.09914]
[1737645512749,3.0975,3228.4,3226.5,0.5588]
[1737645512750,0.5,3229.5,3226.5,1.1664713]
[1737645512916,3.09709,3228.9,3228.0,3.09787]
[1737645513243,0.9492,3230.3,3229.1,3.09679]
[1737645513409,0.9492,3230.3,3229.2,3.09667]
[1737645513611,0.9492,3230.3,3229.6,3.72817195]
[1737645513804,3.09588,3230.1,3229.3,3.09663]
[1737645514002,0.9492,3230.3,3229.0,1.18010039]
[1737645514201,3.09675,3229.2,3228.4,0.5588]
[1737645514404,0.9492,3230.3,3228.5,3.09741]
[1737645514616,0.9492,3230.3,3229.2,3.09665]
[1737645514852,4.04491,3230.3,3229.2,3.09665]
[1737645515053,3.09571,3230.3,3229.1,0.5588]
[1737645515216,1.0001,3230.7,3229.3,3.09655]
[1737645515426,3.09606,3230.0,3229.3,0.61256538]
[1737645515743,3.09606,3230.0,3229.1,3.65559]
[1737645515744,3.09652,3229.5,3227.9,0.5588]
[1737645515949,3.09588,3230.1,3227.3,0.5588]
[1737645515950,3.9849,3229.3,3227.3,0.5588]
[1737645516104,3.09683,3229.1,3227.4,3.09839]
[1737645516303,6.09683,3229.1,3227.3,0.5588]
[1737645516504,3.0,3229.1,3227.3,0.5588]
[1737645516730,3.09746,3228.5,3227.5,3.09835]
[1737645516930,4.08158,3229.3,3227.7,3.09814]
[1737645516931,3.09738,3228.6,3227.7,3.09814]
[1737645517145,0.9849,3229.3,3228.1,3.0977]
[1737645517329,0.9849,3229.3,3227.4,0.55]
[1737645517537,0.9849,3229.3,3228.0,3.09786]
[1737645517719,3.09764,3228.3,3227.3,0.5588]
[1737645517907,4.08164,3229.3,3227.3,0.5588]
[1737645518107,3.0978,3228.1,3227.3,3.65731]
[1737645518351,3.0978,3228.1,3225.8,0.25]
[1737645518352,3.09869,3227.2,3226.8,0.6075474]
[1737645518551,3.09869,3227.2,3226.7,0.5588]
[1737645518552,3.0,3228.1,3226.7,0.5588]
[1737645518848,3.09879,3227.1,3226.4,0.165689]
[1737645519148,3.09867,3227.2,3226.4,3.265099]
[1737645519304,3.0977,3228.2,3226.4,3.265099]
[1737645519305,3.09828,3227.6,3226.8,3.09897]
[1737645519506,4.08635,3228.3,3226.8,3.09897]
[1737645519507,0.9887,3228.3,3226.8,3.09897]
[1737645519730,0.9887,3228.3,3227.1,3.09868]
[1737645519950,0.9887,3228.3,3227.3,3.09848]
[1737645520123,3.09792,3228.0,3227.3,3.09848]
[1737645520319,0.9887,3228.3,3227.5,3.09837]
[1737645520643,3.09796,3228.0,3227.2,0.5588]
[1737645520946,0.9887,3228.3,3226.5,0.5588]
[1737645521318,3.09781,3228.1,3227.4,3.09839]
[1737645521535,3.09781,3228.1,3227.2,3.09864]
[1737645521734,0.9743,3228.7,3226.5,0.5588]
[1737645521735,3.0976,3228.3,3226.5,0.5588]
[1737645522063,3.0981,3227.8,3226.9,3.09894]
[1737645522232,3.09828,3227.6,3226.5,0.5588]
[1737645522433,3.09849,3227.4,3226.8,3.09901]
[1737645522636,3.09798,3227.9,3227.0,3.09883]
[1737645522861,3.09655,3229.4,3227.3,3.09854]
[1737645523077,4.07152,3228.7,3227.8,3.09801]
[1737645523365,3.09696,3229.0,3227.2,0.5588]
[1737645523523,3.09702,3229.0,3227.2,0.5588]
[1737645523868,3.09664,3229.3,3228.5,3.09738]
[1737645524066,1.0163,3229.7,3228.4,0.5588]
[1737645524366,3.09664,3229.3,3228.4,0.5588]
[1737645524574,3.09664,3229.3,3228.6,3.09731]
[1737645524925,1.0163,3229.7,3228.5,3.09741]
[1737645525276,1.0388,3230.2,3228.4,0.5588]
[1737645525572,3.09673,3229.3,3228.4,0.5588]
[1737645525778,3.09607,3229.9,3228.5,3.0974]
[1737645526069,3.09637,3229.6,3228.7,3.09712]
[1737645526269,3.09607,3229.9,3229.1,3.09674]
[1737645526440,1.0388,3230.2,3228.6,3.09731]
[1737645526643,3.09599,3230.0,3229.2,3.09668]
[1737645526968,3.09587,3230.1,3228.5,3.0974]
[1737645527137,3.0,3229.9,3228.4,0.5588]
[1737645527335,1.0388,3230.2,3227.4,3.09841]
[1737645527336,6.19366,3229.1,3227.6,0.63211164]
[1737645527549,3.0975,3228.5,3227.7,3.09816]
[1737645527761,3.09722,3228.7,3227.7,3.09816]
[1737645527971,0.9519,3229.2,3227.8,3.09801]
[1737645528169,0.9519,3229.2,3227.9,3.09797]
[1737645528370,3.09745,3228.5,3227.7,3.09814]
[1737645528570,3.09782,3228.1,3227.5,0.5317]
[1737645528727,3.09728,3228.7,3227.5,0.5317]
[1737645528934,3.09703,3228.9,3228.1,3.09772]
[1737645529185,3.09723,3228.7,3228.0,3.09785]
[1737645529445,3.09686,3229.1,3228.3,3.09752]
[1737645529585,3.0965,3229.5,3228.6,3.09723]
[1737645529924,3.09674,3229.2,3228.5,3.09739]
[1737645530125,3.09684,3229.1,3228.3,3.0976]
[1737645530279,1.024,3229.6,3228.4,0.5317]
[1737645530486,3.09688,3229.1,3228.4,0.5317]
[1737645530732,1.024,3229.6,3228.4,0.5317]
[1737645530933,1.024,3230.3,3229.6,3.09631]
[1737645531084,4.11976,3230.3,3229.3,3.0966]
[1737645531287,3.09589,3230.1,3229.4,3.09653]
[1737645531696,3.09589,3230.1,3228.7,3.09721]
[1737645531697,3.09664,3229.4,3228.7,3.09721]
[1737645531884,3.09637,3229.6,3228.8,3.09711]
[1737645532084,3.09634,3229.7,3228.6,3.09726]
[1737645532278,3.09634,3229.7,3228.9,3.09698]
[1737645532510,3.09646,3229.5,3228.8,3.09703]
[1737645532711,3.09667,3229.3,3228.7,3.0972]
[1737645532913,3.09647,3229.5,3228.7,3.0972]
[1737645533101,3.09656,3229.4,3228.7,3.0972]
[1737645533297,3.0964,3229.6,3228.9,3.09695]
[1737645533501,3.09628,3229.7,3228.5,0.61235234]
[1737645533847,3.09593,3230.1,3228.7,3.09721]
[1737645533990,3.09643,3229.6,3228.8,3.0971]
[1737645534191,3.09643,3229.6,3228.9,3.09702]
[1737645534402,3.09614,3229.9,3229.1,3.09678]
[1737645534729,1.024,3230.3,3229.6,3.09634]
[1737645534730,4.11968,3230.3,3229.6,3.09634]
[1737645534918,3.09625,3229.8,3229.0,3.0969]
[1737645535240,3.09602,3230.0,3229.4,3.09652]
[1737645535430,3.09579,3230.2,3229.5,3.09639]
[1737645535631,1.024,3230.3,3229.4,0.63240395]
[1737645535632,3.096,3230.0,3229.4,0.63240395]
[1737645536043,3.09609,3229.9,3229.4,0.63240395]
[1737645536222,3.09617,3229.8,3229.4,0.63240395]
[1737645536564,3.0964,3229.6,3229.4,0.63240395]
[1737645536735,3.0964,3229.6,3228.9,3.097]
[1737645537030,3.09613,3229.9,3229.0,0.41666667]
[1737645537231,3.09613,3229.9,3229.2,3.09673]
[1737645537435,3.09585,3230.2,3229.2,3.09665]
[1737645537654,3.09585,3230.2,3229.0,0.41666667]
[1737645537791,1.0135,3230.9,3229.4,0.5317]
[1737645537991,3.09484,3231.2,3230.4,3.09558]
[1737645538312,0.9435,3231.4,3229.8,0.62143741]
[1737645538313,4.03819,3231.4,3229.8,0.62143741]
[1737645538530,3.09482,3231.2,3230.5,3.09544]
[1737645538834,3.09472,3231.3,3229.8,0.5317]
[1737645539053,3.09594,3230.1,3229.3,3.62826]
[1737645539243,3.09605,3230.0,3229.3,0.5317]
[1737645539392,0.9653,3230.6,3229.6,3.09629]
[1737645539596,3.09549,3230.5,3229.6,3.09629]
[1737645539891,0.9591,3231.0,3229.6,3.09627]
[1737645540122,3.09567,3230.4,3229.6,3.09627]
[1737645540354,3.0957,3230.3,3229.4,3.09654]
[1737645540497,3.0957,3230.3,3229.0,0.41666667]
[1737645540498,3.09637,3229.6,3229.0,0.41666667]
[1737645540705,3.09683,3229.1,3229.0,0.41666667]
[1737645540909,3.09672,3229.3,3229.0,0.41666667]
[1737645541244,3.09656,3229.4,3229.0,0.41666667]
[1737645541451,0.9766,3230.0,3229.0,0.41666667]
[1737645541452,3.09664,3229.3,3229.0,0.41666667]
[1737645541654,3.09683,3229.1,3229.0,0.41666667]
[1737645542010,3.09648,3229.5,3229.0,0.41666667]
[1737645542210,3.09662,3229.4,3229.0,0.41666667]
[1737645542412,3.09683,3229.1,3229.0,0.41666667]
[1737645543145,3.09607,3229.9,3229.0,0.41666667]
[1737645543310,3.09624,3229.8,3229.0,0.41666667]
[1737645543672,0.9766,3230.0,3229.0,0.41666667]
[1737645543871,3.09683,3229.1,3229.0,0.41666667]
[1737645544016,3.0968,3229.2,3229.0,0.41666667]
[1737645544271,3.09607,3229.9,3229.0,0.41666667]
[1737645544272,3.09667,3229.3,3229.0,0.41666667]
[1737645544504,3.09647,3229.5,3229.0,0.41666667]
[1737645544668,3.09613,3229.9,3229.2,3.09673]
[1737645544867,3.09575,3230.3,3229.6,3.09635]
[1737645545168,3.09549,3230.5,3229.0,0.41666667]
[1737645545367,3.09669,3229.3,3229.0,0.41666667]
[1737645545601,3.09683,3229.1,3229.0,0.41666667]
[1737645545911,3.09672,3229.3,3229.0,0.41666667]
[1737645546095,3.09683,3229.1,3229.0,0.41666667]
[1737645546507,3.09682,3229.2,3229.0,0.41666667]
[1737645546723,3.09648,3229.5,3229.0,0.41666667]
[1737645547013,1.0257,3229.7,3229.0,0.41666667]
[1737645547209,3.09511,3230.9,3229.2,0.5317]
[1737645547514,4.03799,3231.6,3230.1,3.09587]
[1737645547698,3.09454,3231.5,3230.2,0.5317]
[1737645547934,3.09454,3231.5,3230.8,3.09516]
[1737645548145,0.9435,3231.6,3230.2,3.62741]
[1737645548146,0.9435,3231.6,3230.2,0.5317]
[1737645548303,3.0952,3230.9,3230.3,3.09566]
[1737645548502,0.9435,3231.6,3230.2,0.5317]
[1737645548808,3.09578,3230.2,3229.5,0.5317]
[1737645549147,0.9435,3230.6,3229.5,0.5317]
[1737645549456,3.09635,3229.6,3229.0,0.94836667]
[1737645549599,3.09635,3229.6,3229.0,0.41666667]
[1737645549797,3.09619,3229.8,3229.0,3.51350667]
[1737645550002,4.03898,3230.6,3229.1,0.55]
[1737645550327,3.09617,3229.8,3229.2,0.5317]
[1737645550501,0.9435,3230.6,3229.2,0.5317]
[1737645550502,3.09661,3229.4,3229.2,0.5317]
[1737645550701,0.9435,3230.6,3229.0,0.41666667]